bitfinex/quotes_BTCUSD_20241102
["timestamp","ask_amount","ask_price","bid_price","bid_amount"]
[1730584547193,0.65595379,69445.0,69444.0,0.149821]
[1730584547432,0.65595379,69445.0,69444.0,0.154821]
[1730584552528,0.65595379,69445.0,69444.0,0.149821]
[1730584552737,0.65595379,69445.0,69444.0,0.154821]
[1730584553172,0.64245525,69445.0,69444.0,0.154821]
[1730584553394,0.6559545,69445.0,69444.0,0.154821]
[1730584554252,0.64245525,69445.0,69444.0,0.154821]
[1730584554456,0.65595455,69445.0,69444.0,0.154821]
[1730584554879,0.65595455,69445.0,69444.0,0.149821]
[1730584555293,0.65595455,69445.0,69444.0,0.154821]
[1730584557063,0.65595455,69445.0,69444.0,0.149821]
[1730584557552,0.65595455,69445.0,69444.0,0.154821]
[1730584558374,0.65595455,69445.0,69444.0,0.149821]
[1730584558578,0.65595455,69445.0,69444.0,0.154821]
[1730584560735,0.65595455,69445.0,69444.0,0.149821]
[1730584560991,0.65595455,69445.0,69444.0,0.154821]
[1730584566516,0.65595455,69445.0,69444.0,0.149821]
[1730584566733,0.65595455,69445.0,69444.0,0.154821]
[1730584567626,0.64245525,69445.0,69444.0,0.149821]
[1730584567840,0.64245525,69445.0,69444.0,0.154821]
[1730584568485,0.65595523,69445.0,69444.0,0.154821]
[1730584574444,0.83315523,69445.0,69444.0,0.154821]
[1730584574894,0.83315526,69445.0,69444.0,0.154821]
[1730584575563,0.83315526,69445.0,69444.0,0.149821]
[1730584575776,0.83315526,69445.0,69444.0,0.154821]
[1730584576430,0.83315526,69445.0,69444.0,0.149821]
[1730584576681,0.83315526,69445.0,69444.0,0.154821]
[1730584577987,0.83315526,69445.0,69444.0,0.149821]
[1730584578229,0.83315526,69445.0,69444.0,0.154821]
[1730584578435,0.83315533,69445.0,69444.0,0.154821]
[1730584578655,0.83315533,69445.0,69444.0,0.149821]
[1730584578857,0.83315533,69445.0,69444.0,0.154821]
[1730584581398,0.83315533,69445.0,69444.0,0.149821]
[1730584581625,0.83315533,69445.0,69444.0,0.154821]
[1730584582066,0.83315533,69445.0,69444.0,0.149821]
[1730584582288,0.83315533,69445.0,69444.0,0.154821]
[1730584587327,0.65595533,69445.0,69444.0,0.154821]
[1730584590640,0.65594797,69445.0,69444.0,0.154821]
[1730584594826,0.65594797,69445.0,69444.0,0.149821]
[1730584595038,0.65594797,69445.0,69444.0,0.154821]
[1730584596181,0.65594679,69445.0,69444.0,0.154821]
[1730584596395,0.65590679,69445.0,69444.0,0.154821]
[1730584599606,0.64241525,69445.0,69444.0,0.154821]
[1730584599824,0.65590654,69445.0,69444.0,0.154821]
[1730584600693,0.65590654,69445.0,69444.0,0.149821]
[1730584600915,0.65590654,69445.0,69444.0,0.154821]
[1730584603050,0.64241525,69445.0,69444.0,0.154821]
[1730584603267,0.65590682,69445.0,69444.0,0.149821]
[1730584603538,0.65590682,69445.0,69444.0,0.154821]
[1730584604146,0.65590682,69445.0,69444.0,0.149821]
[1730584604351,0.65590682,69445.0,69444.0,0.154821]
[1730584607282,0.65590785,69445.0,69444.0,0.154821]
[1730584610744,0.65590785,69445.0,69444.0,0.149821]
[1730584610962,0.65590785,69445.0,69444.0,0.154821]
[1730584617393,0.65590785,69445.0,69444.0,0.149821]
[1730584617846,0.65590785,69445.0,69444.0,0.154821]
[1730584618061,0.65754985,69445.0,69444.0,0.154821]
[1730584618488,0.64405725,69445.0,69444.0,0.154821]
[1730584618710,0.65755303,69445.0,69444.0,0.154821]
[1730584621131,0.64405725,69445.0,69444.0,0.154821]
[1730584621356,0.65755295,69445.0,69444.0,0.154821]
[1730584622665,0.65755295,69445.0,69444.0,0.149821]
[1730584622910,0.65755295,69445.0,69444.0,0.154821]
[1730584623357,0.65755295,69445.0,69444.0,0.149821]
[1730584623565,0.65755295,69445.0,69444.0,0.154821]
[1730584624657,0.65755295,69445.0,69444.0,0.149821]
[1730584624871,0.65755295,69445.0,69444.0,0.154821]
[1730584627895,0.6575527,69445.0,69444.0,0.154821]
[1730584629509,0.64405725,69445.0,69444.0,0.154821]
[1730584630435,0.65755239,69445.0,69444.0,0.154821]
[1730584631057,0.67104749,69445.0,69444.0,0.154821]
[1730584631276,0.67104758,69445.0,69444.0,0.154821]
[1730584631700,0.67104758,69445.0,69444.0,0.149821]
[1730584631914,0.67104758,69445.0,69444.0,0.154821]
[1730584632127,0.67104758,69445.0,69444.0,0.149821]
[1730584632349,0.67104758,69445.0,69444.0,0.154821]
[1730584633213,0.67104738,69445.0,69444.0,0.154821]
[1730584633634,0.67104738,69445.0,69444.0,0.149821]
[1730584633851,0.67104738,69445.0,69444.0,0.154821]
[1730584635626,0.67104738,69445.0,69444.0,0.149821]
[1730584635835,0.67104738,69445.0,69444.0,0.154821]
[1730584636587,0.65755239,69445.0,69444.0,0.154821]
[1730584636815,0.67104761,69445.0,69444.0,0.154821]
[1730584641322,0.65755696,69445.0,69444.0,0.154821]
[1730584642439,0.65755696,69445.0,69444.0,0.149821]
[1730584642653,0.65755696,69445.0,69444.0,0.154821]
[1730584643077,0.65755696,69445.0,69444.0,0.149821]
[1730584643288,0.65755696,69445.0,69444.0,0.154821]
[1730584643822,0.6575575,69445.0,69444.0,0.154821]
[1730584645111,0.64405725,69445.0,69444.0,0.154821]
[1730584645323,0.65755765,69445.0,69444.0,0.154821]
[1730584646842,0.65755765,69445.0,69444.0,0.149821]
[1730584647110,0.65755765,69445.0,69444.0,0.154821]
[1730584647357,0.64405725,69445.0,69444.0,0.154821]
[1730584647579,0.65755813,69445.0,69444.0,0.154821]
[1730584650516,0.65755821,69445.0,69444.0,0.154821]
[1730584651196,0.64405725,69445.0,69444.0,0.154821]
[1730584651416,0.67915949,69445.0,69444.0,0.154821]
[1730584652075,0.67915949,69445.0,69444.0,0.149821]
[1730584652291,0.67915949,69445.0,69444.0,0.154821]
[1730584653152,0.67915949,69445.0,69444.0,0.149821]
[1730584653363,0.67915949,69445.0,69444.0,0.154821]
[1730584655592,0.67915949,69445.0,69444.0,0.149821]
[1730584655822,0.67915949,69445.0,69444.0,0.154821]
[1730584656685,0.67915949,69445.0,69444.0,0.149821]
[1730584657063,0.67915949,69445.0,69444.0,0.154821]
[1730584657724,0.67915949,69445.0,69444.0,0.149821]
[1730584657940,0.67915949,69445.0,69444.0,0.154821]
[1730584659731,0.77725949,69445.0,69444.0,0.154821]
[1730584660666,0.77725949,69445.0,69444.0,0.149821]
[1730584660882,0.77725949,69445.0,69444.0,0.154821]
[1730584665038,0.77725783,69445.0,69444.0,0.154821]
[1730584667444,0.77725783,69445.0,69444.0,0.149821]
[1730584667670,0.77725783,69445.0,69444.0,0.154821]
[1730584668505,0.77725759,69445.0,69444.0,0.154821]
[1730584671757,0.77724999,69445.0,69444.0,0.154821]
[1730584671967,0.74215725,69445.0,69444.0,0.154821]
[1730584672171,0.77724993,69445.0,69444.0,0.154821]
[1730584673277,0.67914993,69445.0,69444.0,0.154821]
[1730584674180,0.67914993,69445.0,69444.0,0.149821]
[1730584674390,0.67914993,69445.0,69444.0,0.154821]
[1730584674830,0.67914108,69445.0,69444.0,0.154821]
[1730584675268,0.67914108,69445.0,69444.0,0.149821]
[1730584675477,0.67914108,69445.0,69444.0,0.154821]
[1730584679442,0.67914108,69445.0,69444.0,0.149821]
[1730584679645,0.67914108,69445.0,69444.0,0.154821]
[1730584682051,0.64405725,69445.0,69444.0,0.154821]
[1730584682260,0.67913351,69445.0,69444.0,0.154821]
[1730584683391,0.67913351,69445.0,69444.0,0.149821]
[1730584683602,0.67913351,69445.0,69444.0,0.154821]
[1730584684258,0.67913351,69445.0,69444.0,0.149821]
[1730584684474,0.67913351,69445.0,69444.0,0.154821]
[1730584685344,0.64405725,69445.0,69444.0,0.154821]
[1730584685559,0.67913213,69445.0,69444.0,0.149821]
[1730584685774,0.67913213,69445.0,69444.0,0.154821]
[1730584687584,0.67913213,69445.0,69444.0,0.149821]
[1730584691478,0.64405725,69445.0,69444.0,0.149821]
[1730584691929,0.67913732,69445.0,69444.0,0.149821]
[1730584693074,0.67913836,69445.0,69444.0,0.149821]
[1730584696374,0.67913911,69445.0,69444.0,0.149821]
[1730584697456,0.67913903,69445.0,69444.0,0.149821]
[1730584700088,0.67913937,69445.0,69444.0,0.149821]
[1730584703652,0.67913849,69445.0,69444.0,0.149821]
[1730584709727,0.67913976,69445.0,69444.0,0.149821]
[1730584714103,0.64405725,69445.0,69444.0,0.149821]
[1730584714322,0.6791422,69445.0,69444.0,0.149821]
[1730584714524,0.67914302,69445.0,69444.0,0.149821]
[1730584717798,0.6791479,69445.0,69444.0,0.149821]
[1730584719075,0.67915024,69445.0,69444.0,0.149821]
[1730584721457,0.6791612,69445.0,69444.0,0.149821]
[1730584723236,0.8547612,69445.0,69444.0,0.149821]
[1730584725153,0.81965725,69445.0,69444.0,0.149821]
[1730584725381,0.8547597,69445.0,69444.0,0.149821]
[1730584728432,0.85475718,69445.0,69444.0,0.149821]
[1730584733151,0.85475648,69445.0,69444.0,0.149821]
[1730584739087,0.85475666,69445.0,69444.0,0.149821]
[1730584741621,0.85475691,69445.0,69444.0,0.149821]
[1730584743347,0.85475695,69445.0,69444.0,0.149821]
[1730584745141,0.81965725,69445.0,69444.0,0.149821]
[1730584745370,0.85475688,69445.0,69444.0,0.149821]
[1730584747747,0.85475725,69445.0,69444.0,0.149821]
[1730584751923,0.85475759,69445.0,69444.0,0.149821]
[1730584752386,0.81965725,69445.0,69444.0,0.149821]
[1730584752623,0.85475795,69445.0,69444.0,0.149821]
[1730584755405,0.85475866,69445.0,69444.0,0.149821]
[1730584755836,0.81965725,69445.0,69444.0,0.149821]
[1730584756074,0.85475887,69445.0,69444.0,0.149821]
[1730584759624,0.85475977,69445.0,69444.0,0.149821]
[1730584768859,0.99875777,69445.0,69444.0,0.000821]
[1730584769142,0.99875777,69445.0,69443.0,0.000821]
[1730584769143,0.144,69444.0,69443.0,0.000821]
[1730584769360,0.243815,69437.0,69436.0,0.000821]
[1730584769588,0.99677122,69437.0,69436.0,0.000821]
[1730584770316,1.03994058,69437.0,69436.0,0.000821]
[1730584770935,0.99676706,69437.0,69436.0,0.000821]
[1730584771842,0.99876706,69437.0,69436.0,0.000821]
[1730584772059,0.99676706,69437.0,69436.0,0.000821]
[1730584776948,0.98327025,69437.0,69436.0,0.000821]
[1730584777180,0.99673793,69437.0,69436.0,0.000821]
[1730584777395,0.98327025,69437.0,69436.0,0.000821]
[1730584777621,0.99673623,69437.0,69436.0,0.000821]
[1730584780474,1.05434023,69437.0,69436.0,0.000821]
[1730584780742,1.05433686,69437.0,69436.0,0.000821]
[1730584784472,1.04087425,69437.0,69436.0,0.000821]
[1730584784661,1.05433532,69437.0,69436.0,0.000821]
[1730584786864,1.04087425,69437.0,69436.0,0.000821]
[1730584787085,1.05433554,69437.0,69436.0,0.000821]
[1730584788590,1.05433661,69437.0,69436.0,0.000821]
[1730584791812,1.04087425,69437.0,69436.0,0.000821]
[1730584792034,1.0543401,69437.0,69436.0,0.000821]
[1730584795280,1.04087425,69437.0,69436.0,0.000821]
[1730584795512,1.05435062,69437.0,69436.0,0.000821]
[1730584801223,1.04087425,69437.0,69436.0,0.000821]
[1730584801428,1.05637772,69437.0,69436.0,0.000821]
[1730584807716,1.1661711,69437.0,69436.0,0.000821]
[1730584807941,1.05637772,69437.0,69436.0,0.000821]
[1730584808146,1.04287425,69437.0,69436.0,0.000821]
[1730584808352,1.05637779,69437.0,69436.0,0.000821]
[1730584810439,1.27292331,69437.0,69436.0,0.000821]
[1730584810664,1.10139028,69437.0,69436.0,0.000821]
[1730584811085,1.16600881,69437.0,69436.0,0.000821]
[1730584811337,1.10139028,69437.0,69436.0,0.000821]
[1730584811759,1.16600559,69437.0,69436.0,0.000821]
[1730584811966,1.31131254,69437.0,69436.0,0.000821]
[1730584812169,1.2251545,69437.0,69436.0,0.000821]
[1730584812633,1.31144356,69437.0,69436.0,0.000821]
[1730584813218,1.2231545,69437.0,69436.0,0.000821]
[1730584813572,1.2251545,69437.0,69436.0,0.000821]
[1730584813918,1.23865424,69437.0,69436.0,0.000821]
[1730584814309,1.34658036,69437.0,69436.0,0.000821]
[1730584815196,1.23874076,69437.0,69436.0,0.000821]
[1730584815868,0.66160576,69435.0,69434.0,3.22154169]
[1730584816108,1.45991503,69435.0,69434.0,3.22154169]
[1730584816346,1.50488671,69435.0,69434.0,3.22154169]
[1730584816783,1.39509333,69435.0,69434.0,3.22154169]
[1730584817017,1.42605468,69435.0,69434.0,3.22154169]
[1730584817459,1.53584806,69435.0,69434.0,3.22154169]
[1730584817672,1.42605468,69435.0,69434.0,3.22154169]
[1730584819266,1.42463842,69435.0,69434.0,3.22154169]
[1730584819478,1.2867004,69435.0,69434.0,3.22154169]
[1730584820540,1.39649378,69435.0,69434.0,3.22154169]
[1730584820749,1.2867004,69435.0,69434.0,3.22154169]
[1730584820956,1.2887004,69435.0,69434.0,3.22154169]
[1730584822239,1.2887004,69435.0,69434.0,3.16805906]
[1730584823948,1.28866592,69435.0,69434.0,3.16805906]
[1730584824189,1.28666596,69435.0,69434.0,3.16805906]
[1730584824408,1.28866596,69435.0,69434.0,3.16805906]
[1730584824857,1.2886648,69435.0,69434.0,3.16805906]
[1730584825513,1.24369312,69435.0,69434.0,3.16805906]
[1730584825948,1.28861018,69435.0,69434.0,3.16805906]
[1730584826385,1.42443507,69435.0,69434.0,3.16805906]
[1730584828148,1.53219717,69435.0,69434.0,3.16805906]
[1730584829201,1.48728011,69435.0,69434.0,3.16805906]
[1730584829647,1.37951801,69435.0,69434.0,3.16805906]
[1730584831143,1.36605387,69435.0,69434.0,3.16805906]
[1730584831364,1.37951298,69435.0,69434.0,3.16805906]
[1730584832460,1.42437835,69435.0,69434.0,3.16805906]
[1730584836875,1.53062868,69435.0,69434.0,3.16805906]
[1730584837301,1.53262868,69435.0,69434.0,3.16805906]
[1730584837737,1.4228353,69435.0,69434.0,3.16805906]
[1730584837948,1.31517395,69435.0,69434.0,3.16805906]
[1730584838393,1.30171249,69435.0,69434.0,3.16805906]
[1730584838610,1.31518227,69435.0,69434.0,3.16805906]
[1730584839259,1.42283387,69435.0,69434.0,3.16805906]
[1730584839994,1.31518227,69435.0,69434.0,3.16805906]
[1730584840203,1.4228319,69435.0,69434.0,3.16805906]
[1730584840435,1.42291279,69435.0,69434.0,3.16805906]
[1730584840641,1.31526261,69435.0,69434.0,3.16805906]
[1730584842155,1.31527275,69435.0,69434.0,3.16805906]
[1730584846256,1.3152855,69435.0,69434.0,3.16805906]
[1730584846932,1.42507888,69435.0,69434.0,3.16805906]
[1730584848053,1.425082,69435.0,69434.0,3.16805906]
[1730584849343,1.41158621,69435.0,69434.0,3.16805906]
[1730584849553,1.42508265,69435.0,69434.0,3.16805906]
[1730584851164,1.42508265,69435.0,69434.0,3.20105906]
[1730584854482,1.42530061,69435.0,69434.0,3.20105906]
[1730584856804,1.55461342,69435.0,69434.0,3.20105906]
[1730584857925,1.42530061,69435.0,69434.0,3.20105906]
[1730584859071,1.42544289,69435.0,69434.0,3.20105906]
[1730584859283,1.41194645,69435.0,69434.0,3.20105906]
[1730584859491,1.53523504,69435.0,69434.0,3.20105906]
[1730584859908,1.42544166,69435.0,69434.0,3.20105906]
[1730584860554,1.42544145,69435.0,69434.0,3.20105906]
[1730584866572,1.42544049,69435.0,69434.0,3.20105906]
[1730584866794,1.41194645,69435.0,69434.0,3.20105906]
[1730584867013,1.42561652,69435.0,69434.0,3.20105906]
[1730584869408,1.42561652,69435.0,69434.0,3.16805906]
[1730584873877,1.41212245,69435.0,69434.0,3.16805906]
[1730584874092,1.42561717,69435.0,69434.0,3.16805906]
[1730584877601,1.42561646,69435.0,69434.0,3.16805906]
[1730584881048,1.42560259,69435.0,69434.0,3.16805906]
[1730584883288,1.39464124,69435.0,69434.0,3.16805906]
[1730584884891,1.38114723,69435.0,69434.0,3.16805906]
[1730584885099,1.39464145,69435.0,69434.0,3.16805906]
[1730584885537,1.39473073,69435.0,69434.0,3.16805906]
[1730584888263,1.54046556,69435.0,69434.0,3.16805906]
[1730584888494,1.53320803,69435.0,69434.0,3.16805906]
[1730584888941,1.83379693,69435.0,69434.0,3.16805906]
[1730584889157,1.64300141,69435.0,69434.0,3.16805906]
[1730584889811,1.50452411,69435.0,69434.0,3.16805906]
[1730584890638,1.39473073,69435.0,69434.0,3.16805906]
[1730584891067,1.38973073,69435.0,69434.0,3.16805906]
[1730584891496,1.39473073,69435.0,69434.0,3.16805906]
[1730584891712,1.39273073,69435.0,69434.0,3.16805906]
[1730584891948,1.39473073,69435.0,69434.0,3.16805906]
[1730584892351,1.53320803,69435.0,69434.0,3.16805906]
[1730584893307,1.39473073,69435.0,69434.0,3.16805906]
[1730584894816,1.39273073,69435.0,69434.0,3.16805906]
[1730584895256,1.50452411,69435.0,69434.0,3.16805906]
[1730584895702,1.50252411,69435.0,69434.0,3.16805906]
[1730584895990,1.50452411,69435.0,69434.0,3.16805906]
[1730584896212,1.5045231,69435.0,69434.0,3.16805906]
[1730584896647,1.5025231,69435.0,69434.0,3.16805906]
[1730584897348,1.5045231,69435.0,69434.0,3.16805906]
[1730584897565,1.50452304,69435.0,69434.0,3.16805906]
[1730584899849,1.49094096,69435.0,69434.0,3.16805906]
[1730584900077,1.50443378,69435.0,69434.0,3.16805906]
[1730584900309,1.50443367,69435.0,69434.0,3.16805906]
[1730584900739,1.64291097,69435.0,69434.0,3.16805906]
[1730584901128,1.78863121,69435.0,69434.0,3.16805906]
[1730584901593,1.64291097,69435.0,69434.0,3.16805906]
[1730584902662,1.64091097,69435.0,69434.0,3.16805906]
[1730584902883,1.64291097,69435.0,69434.0,3.16805906]
[1730584903545,1.62941826,69435.0,69434.0,3.16805906]
[1730584903761,1.64290934,69435.0,69434.0,3.16805906]
[1730584904428,1.63790934,69435.0,69434.0,3.16805906]
[1730584904661,1.64290934,69435.0,69434.0,3.16805906]
[1730584905294,1.50443204,69435.0,69434.0,3.16805906]
[1730584906780,1.69510305,69435.0,69434.0,3.1495234]
[1730584907003,1.50443204,69435.0,69434.0,3.1495234]
[1730584907244,1.50443239,69435.0,69434.0,3.1495234]
[1730584907465,1.63878904,69435.0,69434.0,3.1495234]
[1730584907687,1.50443239,69435.0,69434.0,3.1495234]
[1730584909002,1.50413799,69435.0,69434.0,3.1495234]
[1730584909449,1.49913799,69435.0,69434.0,3.1495234]
[1730584909673,1.50413799,69435.0,69434.0,3.1495234]
[1730584909886,1.64261529,69435.0,69434.0,3.1495234]
[1730584910518,1.62912386,69435.0,69434.0,3.1495234]
[1730584910747,1.64261482,69435.0,69434.0,3.1495234]
[1730584911051,1.63761482,69435.0,69434.0,3.1495234]
[1730584911267,1.64261482,69435.0,69434.0,3.1495234]
[1730584912809,1.63761482,69435.0,69434.0,3.1495234]
[1730584913029,1.80929497,69435.0,69434.0,2.3602928]
[1730584913241,1.70754283,69435.0,69434.0,2.34221761]
[1730584913685,1.59753818,69435.0,69434.0,2.34221761]
[1730584916243,1.59753818,69435.0,69434.0,1.84553559]
[1730584916439,1.70545179,69435.0,69434.0,1.84553559]
[1730584918268,1.70542219,69435.0,69434.0,1.84553559]
[1730584919155,1.5975152,69435.0,69434.0,1.34885357]
[1730584921084,1.59751269,69435.0,69434.0,1.34885357]
[1730584921321,1.45903539,69435.0,69434.0,1.34885357]
[1730584921519,1.45898697,69435.0,69434.0,1.34885357]
[1730584922170,1.33570514,69435.0,69434.0,1.34885357]
[1730584922417,1.3491932,69435.0,69434.0,1.34885357]
[1730584923381,1.21357669,69435.0,69434.0,1.34885357]
[1730584923790,1.35205301,69435.0,69434.0,1.34885357]
[1730584926210,1.39699917,69435.0,69434.0,1.34885357]
[1730584926886,1.25852187,69435.0,69434.0,1.34885357]
[1730584927303,1.08551745,69435.0,69434.0,1.34885357]
[1730584931673,1.21492092,69435.0,69434.0,1.34885357]
[1730584934578,1.20143826,69435.0,69434.0,1.34885357]
[1730584934788,1.21491776,69435.0,69434.0,1.34885357]
[1730584935441,1.35339506,69435.0,69434.0,1.34885357]
[1730584938044,1.33991556,69435.0,69434.0,1.34885357]
[1730584938263,1.35339717,69435.0,69434.0,1.34885357]
[1730584941614,1.33991556,69435.0,69434.0,1.34885357]
[1730584941921,1.35340005,69435.0,69434.0,1.34885357]
[1730584942474,1.21492275,69435.0,69434.0,1.34885357]
[1730584945763,1.21494201,69435.0,69434.0,1.34885357]
[1730584945980,1.21494202,69435.0,69434.0,1.34885357]
[1730584948920,1.21494704,69435.0,69434.0,1.34885357]
[1730584952207,1.20145753,69435.0,69434.0,1.34885357]
[1730584952423,1.21495125,69435.0,69434.0,1.34885357]
[1730584952632,1.20145753,69435.0,69434.0,1.34885357]
[1730584952859,1.2149513,69435.0,69434.0,1.34885357]
[1730584954460,1.08552856,69435.0,69434.0,1.34885357]
[1730584959390,1.07203479,69435.0,69434.0,1.34885357]
[1730584959604,1.08553157,69435.0,69434.0,1.34885357]
[1730584960654,1.19532495,69435.0,69434.0,1.34885357]
[1730584961309,1.08553157,69435.0,69434.0,1.34885357]
[1730584963037,1.07203479,69435.0,69434.0,1.34885357]
[1730584963273,1.08553166,69435.0,69434.0,1.34885357]
[1730584963505,1.08553163,69435.0,69434.0,1.34885357]
[1730584965402,1.19532501,69435.0,69434.0,1.34885357]
[1730584966697,1.19532515,69435.0,69434.0,1.34885357]
[1730584969939,1.08553177,69435.0,69434.0,1.34885357]
[1730584972938,1.20694711,69435.0,69434.0,1.34885357]
[1730584973861,1.19345013,69435.0,69434.0,1.34885357]
[1730584974068,1.20694658,69435.0,69434.0,1.34885357]
[1730584974298,1.19345013,69435.0,69434.0,1.34885357]
[1730584974537,1.20694662,69435.0,69434.0,1.34885357]
[1730584975051,1.31674,69435.0,69434.0,1.34885357]
[1730584975596,1.20694662,69435.0,69434.0,1.34885357]
[1730584976476,1.31674,69435.0,69434.0,1.34885357]
[1730584980501,1.19532466,69435.0,69434.0,1.34885357]
[1730584981164,1.46043517,69435.0,69434.0,1.34885357]
[1730584981381,1.33085773,69435.0,69434.0,1.34885357]
[1730584981641,1.50495773,69435.0,69434.0,1.34885357]
[1730584981823,1.63453517,69435.0,69434.0,1.34885357]
[1730584982256,1.6650266,69435.0,69434.0,1.34885357]
[1730584983879,1.62993854,69435.0,69434.0,1.34885357]
[1730584984105,1.66501783,69435.0,69434.0,1.34885357]
[1730584986433,1.66553304,69435.0,69434.0,1.34885357]
[1730584986821,1.52705574,69435.0,69434.0,1.34885357]
[1730584987066,1.49197645,69435.0,69434.0,1.34885357]
[1730584987286,1.52705112,69435.0,69434.0,1.34885357]
[1730584989278,1.52505112,69435.0,69434.0,1.34885357]
[1730584990134,1.38900284,69435.0,69434.0,1.34885357]
[1730584990360,1.39100284,69435.0,69434.0,1.34885357]
[1730584990586,1.35592817,69435.0,69434.0,1.34885357]
[1730584990809,1.3910002,69435.0,69434.0,1.34885357]
[1730584991049,1.3890002,69435.0,69434.0,1.34885357]
[1730584991275,1.52445079,69435.0,69434.0,1.34885357]
[1730584991684,1.52645079,69435.0,69434.0,1.34885357]
[1730584992138,1.3910002,69435.0,69434.0,1.34885357]
[1730584992785,1.3890002,69435.0,69434.0,1.34885357]
[1730584993197,1.52445029,69435.0,69434.0,1.34885357]
[1730584994133,1.48937826,69435.0,69434.0,1.34885357]
[1730584994337,1.52444912,69435.0,69434.0,1.34885357]
[1730584995450,1.39099903,69435.0,69434.0,1.34885357]
[1730584995681,1.52448085,69435.0,69434.0,1.34885357]
[1730584996773,1.48940999,69435.0,69434.0,1.34885357]
[1730584997023,1.52448134,69435.0,69434.0,1.34885357]
[1730584998432,1.34605336,69435.0,69434.0,0.47116536]
[1730584998640,1.38901341,69435.0,69434.0,0.47116536]
[1730584999083,1.39101341,69435.0,69434.0,0.47116536]
[1730584999310,1.36743104,69435.0,69434.0,0.47116536]
[1730584999815,1.36943104,69435.0,69434.0,0.47116536]
[1730585000296,1.49507849,69435.0,69434.0,0.47116536]
[1730585000746,1.36943104,69435.0,69434.0,0.47116536]
[1730585001216,1.36942503,69435.0,69434.0,0.47116536]
[1730585003966,1.36942503,69435.0,69434.0,0.40685245]
[1730585004652,1.36942113,69435.0,69434.0,0.40685245]
[1730585005085,1.36942118,69435.0,69434.0,0.40685245]
[1730585007131,1.5017406,69435.0,69434.0,0.40685245]
[1730585008266,1.50173771,69435.0,69434.0,0.40685245]
[1730585008460,1.50173771,69435.0,69434.0,0.37093251]
[1730585008726,0.002,69414.0,69399.0,0.21654552]
[1730585008929,0.002,69414.0,69413.0,1e-06]
[1730585008930,1.42687462,69414.0,69413.0,1e-06]
[1730585009191,1.3619959,69414.0,69413.0,1e-06]
[1730585009418,1.6635152,69414.0,69413.0,1e-06]
[1730585010542,0.49365976,69409.0,69408.0,1e-06]
[1730585010762,0.7860888,69409.0,69408.0,1e-06]
[1730585011002,1.2900888,69409.0,69408.0,1e-06]
[1730585011869,1.33492343,69409.0,69408.0,1e-06]
[1730585012102,1.47340073,69409.0,69408.0,1e-06]
[1730585012556,1.36360735,69409.0,69408.0,1e-06]
[1730585014382,1.31877272,69409.0,69408.0,1e-06]
[1730585015208,1.32036819,69409.0,69408.0,1e-06]
[1730585015620,1.43016157,69409.0,69408.0,1e-06]
[1730585017230,1.5375662,69409.0,69408.0,1e-06]
[1730585017924,1.42777282,69409.0,69408.0,1e-06]
[1730585018152,1.5375662,69409.0,69408.0,1e-06]
[1730585018377,1.32036819,69409.0,69408.0,1e-06]
[1730585018611,1.42777282,69409.0,69408.0,1e-06]
[1730585018830,1.36509555,69409.0,69408.0,1e-06]
[1730585022211,1.35166585,69409.0,69408.0,1e-06]
[1730585022441,1.36508155,69409.0,69408.0,1e-06]
[1730585022666,1.22458399,69409.0,69408.0,1e-06]
[1730585022890,1.36377844,69409.0,69408.0,1e-06]
[1730585025821,1.3637803,69409.0,69408.0,1e-06]
[1730585026751,1.47357368,69409.0,69408.0,1e-06]
[1730585027405,1.47362431,69409.0,69408.0,1e-06]
[1730585028998,1.36383093,69409.0,69408.0,1e-06]
[1730585029210,1.54033093,69409.0,69408.0,1e-06]
[1730585029436,1.65012431,69409.0,69408.0,1e-06]
[1730585031391,1.54033093,69409.0,69408.0,1e-06]
[1730585031855,1.53996477,69409.0,69408.0,1e-06]
[1730585032720,1.53996477,69409.0,69394.0,0.00163]
[1730585032721,0.002,69395.0,69394.0,0.00163]
[1730585032959,0.93476819,69395.0,69394.0,0.00163]
[1730585034788,0.82497481,69395.0,69394.0,0.00163]
[1730585037673,0.88262481,69395.0,69394.0,0.00163]
[1730585038377,0.92741838,69395.0,69394.0,0.00163]
[1730585038603,1.06589568,69395.0,69394.0,0.00163]
[1730585041036,1.17568906,69395.0,69394.0,0.00163]
[1730585042180,1.05247812,69395.0,69394.0,0.00163]
[1730585042392,1.06596188,69395.0,69394.0,0.00163]
[1730585043289,1.065962,69395.0,69394.0,0.00163]
[1730585044159,1.1088952,69395.0,69394.0,0.00163]
[1730585044373,1.10892706,69395.0,69394.0,0.00163]
[1730585045017,1.065962,69395.0,69394.0,0.00163]
[1730585045683,1.05247812,69395.0,69394.0,0.00163]
[1730585045898,1.06596166,69395.0,69394.0,0.00163]
[1730585046156,1.13040925,69395.0,69394.0,0.00163]
[1730585047266,1.20524742,69395.0,69394.0,0.00163]
[1730585047497,1.06596166,69395.0,69394.0,0.00163]
[1730585048139,1.29126515,69395.0,69394.0,0.00163]
[1730585049220,1.20533503,69395.0,69394.0,0.00163]
[1730585049662,1.21083439,69395.0,69394.0,0.00163]
[1730585050092,1.07235709,69395.0,69394.0,0.00163]
[1730585050304,1.17976975,69395.0,69394.0,0.00163]
[1730585051228,1.07235709,69395.0,69394.0,0.00163]
[1730585052185,1.28890261,69395.0,69394.0,0.00163]
[1730585052402,1.28890261,69395.0,69371.0,4.494e-05]
[1730585052403,0.167144,69375.0,69371.0,4.494e-05]
[1730585052656,0.167144,69375.0,69366.0,0.21817552]
[1730585052657,1.07966974,69375.0,69369.0,4.494e-05]
[1730585052878,1.21904311,69375.0,69369.0,4.494e-05]
[1730585053100,1.00724973,69375.0,69369.0,4.494e-05]
[1730585053329,0.67893879,69375.0,69374.0,0.08163]
[1730585053548,0.65593879,69375.0,69374.0,0.18031267]
[1730585053771,0.21654552,69388.0,69376.0,0.288284]
[1730585054005,0.21654552,69386.0,69384.0,0.28825]
[1730585054219,0.04306074,69401.0,69394.0,0.144104]
[1730585054451,0.24355774,69395.0,69392.0,0.39800738]
[1730585054731,0.72090552,69395.0,69394.0,0.144104]
[1730585054978,0.72090552,69395.0,69383.0,0.005]
[1730585054979,0.85936077,69395.0,69383.0,0.005]
[1730585055200,0.85936077,69395.0,69383.0,0.144127]
[1730585055201,0.144107,69393.0,69383.0,0.144127]
[1730585055419,0.14411,69392.0,69382.0,0.224127]
[1730585055637,0.144108,69392.0,69383.0,0.144127]
[1730585055872,0.023,69391.0,69383.0,0.144127]
[1730585056080,0.023,69393.0,69383.0,0.144127]
[1730585056309,0.023,69391.0,69383.0,0.144127]
[1730585056546,0.023,69391.0,69382.0,0.08]
[1730585056764,0.167111,69391.0,69383.0,0.144127]
[1730585057690,0.50436,69390.0,69383.0,0.144127]